Workbook

Sheet pinmoney
A2: Wednesday Fun Fours bowling league at Double Decker Lanes 2024/25 season
C4: Prize Fund | G4: Secretary fund
A5: ((60*20)+(64*10))*$2.95 | C5: =((60*20)+(64*10))*2.95 -> 5428.00 | E5: ((60*20)+(64*10))*$1.00 | G5: =((60*20)+(64*10))*1 -> 1840.00
A6: - corrections wk1-wk30 | C6: =35*2.95 -> 103.25 | G6: 35.00
C9: ========== | G9: ==========
A10: corrected total= | C10: =C5-C6+C7 -> 5324.75 | G10: =G5-SUM(G6:G8) -> 1805.00
A11: minus awards budget | C11: =B76 -> 1200.00 | D11: from page 2
A12: - misc. expenses | C12: 39.40 | D12: Bank Checks
A13: -other losses | C13: 0.00
C14: ==========
C15: =C10-SUM(C11:C13) -> 4085.35
A17: Wednesday Fun Fours Pinmoney 2023/24 season: (prize fund - trophies) / total wins
B18: =C15 -> 4085.35 | C18: divided By | D18: =B39 -> 938 | E18: equals: | F18: =ROUND(B18/B39,5) -> 4.35538 | G18: per win
C20: wins X per | E20: per person, per wk
A21: Team# | B21: total wins: | C21: win amt | D21: / by 4 | E21: / by 120 | F21: (4 *30)=120
A22: 1 | B22: 54 | C22: =ROUND(B22*$F$18,0) -> 235.00 | D22: =C22/4 -> 58.75 | E22: =ROUND(C22/120,4) -> 1.9583 | F22: **
A23: 2 | B23: 75.5 | C23: =ROUND(B23*$F$18,0) -> 329.00 | D23: =C23/4 -> 82.25 | E23: =ROUND(C23/120,4) -> 2.7417
A24: 3 | B24: 69.5 | C24: =ROUND(B24*$F$18,0) -> 303.00 | D24: 75.75 | E24: 2.5250
A25: 4 | B25: 69.5 | C25: 303.00 | D25: 75.75 | E25: 2.5250 | F25: **
A26: 5 | B26: 85 | C26: 370.00 | D26: =C26/4 -> 92.50 | E26: 3.0833
A27: 6 | B27: 63 | C27: 274.00 | D27: =C27/4 -> 68.50 | E27: 2.2833
A28: 7 | B28: 53.5 | C28: 233.00 | D28: 58.25 | E28: 1.9417
A29: 8 | B29: 72 | C29: 314.00 | D29: 78.50 | E29: 2.6167
A30: 9 | B30: 44 | C30: 192.00 | D30: 48.00 | E30: 1.6000 | F30: **
A31: 10 | B31: 44 | C31: 192.00 | D31: 48.00 | E31: 1.6000
A32: 11 | B32: 49.5 | C32: 216.00 | D32: =C32/4 -> 54.00 | E32: 1.8000
A33: 12 | B33: 57.5 | C33: 250.00 | D33: 62.50 | E33: 2.0833
A34: 13 | B34: 68 | C34: 296.00 | D34: 74.00 | E34: 2.4667 | F34: **
A35: 14 | B35: 56.5 | C35: 246.00 | D35: =C35/4 -> 61.50 | E35: 2.0500
A36: 15 | B36: 51 | C36: 222.00 | D36: 55.50 | E36: 1.8500 | F36: **
A37: 16 | B37: 25.5 | C37: =ROUND(B37*$F$18,0) -> 111.00 | D37: =C37/4 -> 27.75 | E37: =ROUND(C37/120,4) -> 0.9250
B38: ========= | C38: =========
A39: actual -------> | B39: =SUM(B22:B37) -> 938 | C39: =SUM(C22:C37) -> 4086.00
A40: total possible | B40: 4*8*30 | C40: =4*8*30 -> 960
A41: ** Additional calculations were needed to determine this amount -see additional
A42: sheet in your team envelope.
A44: Wednesday Fun Fours 2024/25 season
A45: Trophies and awards Budget
A46: (proposed guideline; actual amounts determined by prize committee)
A48: Team awards:
A50: 1st place: | B50: 4*60.00= | C50: =4*60 -> 240
A51: 2nd place: | B51: 4*40.00= | C51: =4*40 -> 160
A52: 3rd place: | B52: 4*30.00= | C52: =4*30 -> 120
A53: 4th place: | B53: 4*25.00= | C53: =4*25 -> 100
C54: ==========
C55: =SUM(C50:C53) -> 620
A57: Individual awards:
D59: Men: | G59: Women:
A60: high scratch series: | D60: 60 | G60: 60
A62: high scratch game: | D62: 50 | G62: 50
A64: high handicap series: | D64: 40 | G64: 40
A66: high handicap game: | D66: 30 | G66: 30
A68: high average | D68: 20 | G68: 20
A69: most improved average: | D69: 10 | G69: 10
A70: perfect attendance: | D70: 35 | G70: 35
A71: misc. awards: | D71: 40 | G71: 40
A72: misc. supplies&costs: | D72: 5 | G72: 5
A76: grand total: | B76: =SUM(C50:C53,D60:D72,G60:G72) -> 1200.00
A78: Summary:
B79: expenses | F79: checking account monies
B80: =C39 -> 4086.00 | C80: team pin money pay out amt. | F80: 8120.23 | G80: balance as of 04/10/2024
B81: 0.00 | C81: USBC card/s still owed | F81: 0 | G81: other
B82: =B76 -> 1200.00 | C82: Awards | F82: ==========
B83: =G10 -> 1805.00 | C83: secretary money | F83: =F80-F81 -> 8120.23
B84: =61*3.95 -> 240.95 | C84: Sweeper Awards | F84: =D116 -> 330.00 | G84: arrearages (held out)
B85: =61*19.05 -> 1162.05 | C85: Sweeper Lineage wk31 | F85: =66+97+82 -> 245.00 | G85: owed sweeper night
C86: other expenses
B87: ==========
B88: =SUM(B80:B85) -> 8494.00 | C88: total | F88: ==========
F89: =SUM(F83,F84,F85) -> 8695.23
A90: _____________________________________________________________________________________________
B91: =F89 -> 8695.23 | C91: checking accout monies
B92: =B88 -> 8494.00 | C92: minus expenses
B93: =========
B94: =B91-B92 -> 201.23 | C94: balance carried over to the 2025/2026 season
A98: Money to hold out of team's Pin Money | E98: owe for | F98: Individual
D99: arrearages | E99: sweeper | F99: Total | G99: Team total:
A100: Team 9 | B100: Bernard O'Cop | D100: 5 | F100: =SUM(D100:E100) -> 5
B101: Ken Hanover | D101: 46 | F101: 46
B102: Mat Hanover | D102: 46 | F102: 46
B103: Will Exeby | D103: 23 | F103: 23
B104: Kassandra | D104: 10 | F104: 10 | G104: =SUM(F100:F104) -> 130
A106: Team 13 | B106: Kaliq Cooper | D106: 31 | F106: 31
B107: Victor Carreno | D107: 34 | F107: 34
B108: Carols Mayfield | D108: 64 | F108: 64
B109: Dorian Hah | D109: 2 | F109: 2 | G109: =SUM(D106:E109) -> 131
A111: Team 15 | B111: Alisha Gregg | D111: 23 | F111: =SUM(D111:E111) -> 23
B112: Kyle Martin | D112: 46 | F112: =SUM(D112:E112) -> 46
G113: =SUM(D111:E113) -> 69
D115: ======= | E115: ======= | G115: ==========
D116: =SUM(D100:D113) -> 330 | E116: =SUM(E100:E113) -> 0 | G116: =SUM(D116:E116) -> 330
A122: =C39 -> 4086.00 | B122: pin money total
A123: =G116 -> 330.00 | B123: minus, money held back
A125: ==========
A126: =A122-A123 -> 3756.00 | B126: net amount of cash
A127: =B76 -> 1200.00 | B127: awards cash
A128: =ROUND(B84,0) -> 241.00 | B128: sweeper night
B129: refunds cash
A130: ==========
A131: =SUM(A126:A129) -> 5197.00
B133: Exchange Bank
B134: This is just a heads-up; so you can make sure you have the cash available.
B136: Please get this to the appropriate person at the:
B137: Stony Point Office, Santa Rosa, CA
B139: Wednesday Fun Fours
B140: Checking Account#: 108-0040783
B141: Cash withdrawal needed on 4/12/2025 by around 11:00 AM
A143: money needed= | C143: =ROUND(A131,0) -> $5,197.00
B145: singles | C145: 22 | D145: X 1 = | E145: =C145 -> 22.00
B146: ones | C146: 7 | D146: X 25 = | E146: =C146*25 -> 175.00
B147: fives | C147: 4 | D147: X 100 = | E147: =C147*100 -> 400.00
B148: tens | C148: 3 | D148: X 200 = | E148: =C148*200 -> 600.00
B149: twenties | C149: 8 | D149: X 500 = | E149: =C149*500 -> 4000.00
E150: ========
E151: =SUM(E145:E149) -> $5,197.00 | F151: =E151-C143 -> $0.00
B154: Contact:
B155: John Orcutt
B156: cell phone#: 707-695-8024
B157: email: jorcutt@sonic.net
B158: fax#: 707-595-5474

Sheet actual money awards
B1: Wednesday Fun Fours: Actual Awards, amounts 2025
B2: 1st Place | C2: 4*60 | D2: The Scramblers (Place TBD) | E2: =4*60 -> 240
B3: 2nd Place | C3: 4*40 | D3: Mines in The Gutter TBD | E3: =4*40 -> 160
B4: 3rd: Place | C4: 4*30 | D4: Bowl Dogs TBD | E4: =4*30 -> 120
B5: 4th: Place | C5: 4*25 | D5: Tammy Turkeys TBD | E5: =4*25 -> 100 | F5: =SUM(E2:E5) -> 620
B7: high scratch seriesM: | D7: Dorian Hahs 707 | E7: 60
B8: high scratch seriesW: | D8: Jasmine Brady 584 | E8: 60 | F8: =SUM(E7:E8) -> 120
B10: high scratch gameM: | D10: Marcus Kuok 284 | E10: 50
B11: high scratch gameW: | D11: Cindy McElrath 242 | E11: 50 | F11: =SUM(E10:E11) -> 100
B13: high handicap seriesM: | D13: Phil Tran 826 | E13: 40
B14: high handicap seriesW: | D14: Amy West 750 | E14: 40 | F14: =SUM(E13:E14) -> 80
B16: high handicap gameM: | D16: Matt Clark 319 | E16: 30
B17: high handicap gameW: | D17: Tammy Lang 287 | E17: 30 | F17: =SUM(E16:E17) -> 60
B19: High AverageM: | D19: Matt McFarlane 194 | E19: 13
B20: High AverageM: | D20: Marcus Kuok 194 | E20: 13
B21: High AverageM: | D21: Dorian Hahs 194 | E21: 13
B22: High AverageM: | D22: Morgan Thomas 194 | E22: 13
B23: High AverageW: | D23: Jasmine Brady 161 | E23: 13
B24: High AverageW: | D24: Cindy McElrath 161 | E24: 13 | F24: =SUM(E19:E24) -> 78
B26: most improved averageM: | D26: Kyle Wilson 25.06 | E26: 10
B27: most improved averageW: | D27: Jenn McFarlane 24.99 | E27: 10 | F27: =SUM(E26:E27) -> 20
B29: perfect attendance: | C29: 1 | D29: Allen Watts | E29: 6
C30: =C29+1 -> 2 | D30: Earl King | E30: 6
C31: =C30+1 -> 3 | D31: Tim Brady | E31: 6
C32: 4 | D32: Tammy Lang | E32: 6
C33: 5 | D33: Mike Doyel | E33: 6
C34: 6 | D34: Jenn McFarlane | E34: 6
C35: 7 | D35: Josie Bisler | E35: 6
C36: 8 | D36: Ronnie Carretero | E36: 6
C37: 9 | D37: John Orcutt | E37: 6
C38: 10 | D38: Kyle Martin | E38: 6 | F38: =SUM(E29:E38) -> 60
B41: Gift for League Officers services (3 X 20) | E41: 60
D43: balance $1200.00-actual award total= | G43: =pinmoney!B76-SUM(E2:E41) -> 2.00
B45: Sweeper Night awards ( Who _TBD) | E45: Men | F45: Women
B46: (High Handicap SeriesM/F) | E46: 45 | F46: 45
B47: from pinmoney sheet: | D47: =pinmoney!B84 -> 240.95 | E47: 35 | F47: 35
E48: 25 | F48: 25
E49: 15.5 | F49: 15.5
F50: total: | G50: =SUM(E46:F49) -> $241.00
B54: Six games over average, two consecutive weeks - 2024-2025:
B55: Everyone will receive a Certificate.
C56: Team#:
A57: 1 | B57: Phil Tran | C57: 1
A58: =A57+1 -> 2 | B58: Jasmine Brady | C58: 2
A59: =A58+1 -> 3 | B59: Earl King | C59: 2
A60: 4 | B60: Mike Doyel | C60: 3
A61: 5 | B61: LaDainian Kuok | C61: 4
A62: 6 | B62: Jenn McFarlane | C62: 5
A63: 7 | B63: Matt McFarlane | C63: 5
A64: 8 | B64: Dustin Campana | C64: 6
A65: 9 | B65: Daniel Torres | C65: 6
A66: 10 | B66: Ronnie Carretero | C66: 7
A67: 11 | B67: Mike Schirman | C67: 8
A68: 12 | B68: Ken Hanover | C68: 9
A69: 13 | B69: Dom Mata | C69: 9
A70: 14 | B70: Tom Woodard | C70: 10
A71: 15 | B71: Ron Plasse | C71: 10
A72: 16 | B72: Amy West | C72: 14
A73: 17 | B73: Ginny Ruhl | C73: 14

Sheet 6_over_avg
A1: Six over average - 2 weeks
C2: Team:
A3: 1 | B3: Phil Tran | C3: 1
A4: =A3+1 -> 2 | B4: Jasmine Brady | C4: 2
A5: =A4+1 -> 3 | B5: Earl King | C5: 2
A6: 4 | B6: Mike Doyel | C6: 3
A7: 5 | B7: LaDainian Kuok | C7: 4
A8: 6 | B8: Jenn McFarlane | C8: 5
A9: 7 | B9: Matt McFarlane | C9: 5
A10: 8 | B10: Dustin Campana | C10: 6
A11: 9 | B11: Daniel Torres | C11: 6
A12: 10 | B12: Ronnie Carretero | C12: 7
A13: 11 | B13: Mike Schirman | C13: 8
A14: 12 | B14: Ken Hanover | C14: 9
A15: 13 | B15: Dom Mata | C15: 9
A16: 14 | B16: Tom Woodard | C16: 10
A17: 15 | B17: Ron Plasse | C17: 10
A18: 16 | B18: Amy West | C18: 14

Sheet sweeper night
B4: =pinmoney!A128 -> $241.00
C7: Men | D7: Women
B8: 1 | C8: 45 | D8: 45
B9: 2 | C9: 35 | D9: 35
B10: 3 | C10: 25 | D10: 25
B11: 4 | C11: 15.5 | D11: 15.5
D12: total: | E12: =SUM(C8:D11) -> $241.00
D13: difference | E13: =B4-E12 -> $0.00

Sheet actual money awards Example
A1: Wednesday Fun Fours: Actual Awards, amounts 2024
A2: 1st Place | B2: 4*60 | C2: Death Row PinMates 2812 | D2: =4*60 -> 240
A3: 2nd Place | B3: 4*40 | C3: Pour Decisions 2722 | D3: =4*40 -> 160
A4: 3rd: Place | B4: 4*30 | C4: Narrowing It Down 2711 | D4: =4*30 -> 120
A5: 4th: Place | B5: 4*25 | C5: Team To Beat 2436 | D5: =4*25 -> 100 | E5: =SUM(D2:D5) -> 620
A7: high scratch seriesM: | C7: Mike Schirman 771 | D7: 60
A8: high scratch seriesW: | C8: Patty Green 584 | D8: 60 | E8: =SUM(D7:D8) -> 120
A10: high scratch gameM: | C10: Kenny Mosser 299 | D10: 50
A11: high scratch gameW: | C11: Jenny Carretero 201 | D11: 50 | E11: =SUM(D10:D11) -> 100
A13: high handicap seriesM: | C13: Tim Lewallen 821 | D13: 40
A14: high handicap seriesW: | C14: Cindi White 769 | D14: 40 | E14: =SUM(D13:D14) -> 80
A16: high handicap gameM: | C16: Sean Robinson 340 | D16: 30
A17: high handicap gameW: | C17: Josie Bisler 278 | D17: 30 | E17: =SUM(D16:D17) -> 60
A19: High AverageM: | C19: Kenny Mosser 204 | D19: 15
A20: High AverageW: | C20: Patty Green 161 | D20: 15 | E20: =SUM(D19:D20) -> 30
A22: most improved averageM: | C22: Kenny Mosser +18.92 | D22: 15
A23: most improved averageW: | C23: MaryEllen Wernet +12.74 | D23: 15 | E23: =SUM(D22:D23) -> 30
A25: perfect attendance: | C25: Anthony Farnsworth | D25: 10
C26: Tammy Lang | D26: 10
C27: Cindi White | D27: 10
C28: Josie Bisler | D28: 10
C29: Mike Schirman | D29: 10
C30: Kenneth Hanover | D30: 10
C31: Matt Clark | D31: 10 | E31: 70
A34: Gift Cash for League Officers (3 X 25) | D34: 75
F35: =SUM(D2:D34) -> 1185
C36: balance 1200-actual award total= | F36: =1200-F35 -> 15
A38: Sweeper Night awards
A39: (High Handicap Series)
A47: Six games over average, two concectutive weeks - 2022-2023:
A48: Everyone will receive a Certificate.
A49: Devi Sharma
A50: Michael Slinsen
A51: Gregor Gonzales
A52: Andy Thomson
A53: Mike Doyel
A54: Kenny Mosser
A55: Cindi White
A56: Mary Ellen Wernet
A57: Ray Kummer
A58: Jose Bisler
A59: Ronnie Carretero
A60: Morgan Thomas
A61: Mike Schirman
A62: Kenneth Hanover
A63: Tom Woodard
A64: Jan Askew

Sheet actual money awards 04-17-24
B1: Wednesday Fun Fours: Actual Awards, amounts 2025
B2: 1st Place | C2: 4*60 | D2: Dragonbowlers 2970 | E2: =4*60 -> 240
B3: 2nd Place | C3: 4*40 | D3: Night Flight 2785 | E3: =4*40 -> 160
B4: 3rd: Place | C4: 4*30 | D4: Death Row PinMates 2777 | E4: =4*30 -> 120
B5: 4th: Place | C5: 4*25 | D5: The Scramblers 2666 | E5: =4*25 -> 100 | F5: =SUM(E2:E5) -> 620
B7: high scratch seriesM: | D7: Morgan Thomas 728 | E7: 60
B8: high scratch seriesW: | D8: Tammy Lang 585 | E8: 60 | F8: =SUM(E7:E8) -> 120
B10: high scratch gameM: | D10: Tresean Tompkins 300 | E10: 50
B11: high scratch gameM: | D11: Greg Gonzales 300 | E11: 50
B12: high scratch gameW: | D12: Sara Nerius 229 | E12: 50 | F12: =SUM(E10:E12) -> 150
B14: high handicap seriesM: | D14: Matt McFarlane 855 | E14: 40
B15: high handicap seriesW: | D15: Patty Green 746 | E15: 40 | F15: =SUM(E14:E15) -> 80
B17: high handicap gameM: | D17: Kenneth Hanover 332 | E17: 30
B18: high handicap gameW: | D18: Carole Huygen 281 | E18: 30 | F18: =SUM(E17:E18) -> 60
B20: High AverageM: | D20: Morgan Thomas 199 | E20: 10
B21: High AverageW: | D21: Jasmine Brady 154 | E21: 10
B22: High AverageW: | D22: Patty Green 154 | E22: 10 | F22: =SUM(E20:E22) -> 30
B24: most improved averageM: | D24: Matt McFarlane 25.7 | E24: 10
B25: most improved averageW: | D25: Bailey Nelson 14.77 | E25: 10 | F25: =SUM(E24:E25) -> 20
B27: perfect attendance: | D27: Mike Doyel | E27: 7
D28: Brandon Souvannasay | E28: 7
D29: Marcus Kuok | E29: 7
D30: LaDainian Kuok | E30: 7
D31: Kyle Roarick | E31: 7
D32: Tra Thompkins | E32: 7
D33: John Orcutt | E33: 7
D34: Mike Schirman | E34: 7 | F34: =SUM(E27:E34) -> 56
B36: Gift Cash for League Officers (3 X 21) | E36: 63
D38: Actual awards total= | G38: =SUM(E2:E36) -> 1199
B40: Sweeper Night awards
B41: (High Handicap Series)
B49: Six games over average, two consecutive weeks - 2023-2024:
B50: Everyone will receive a Certificate.
A51: 1 | B51: Jake Dorfman
A52: 2 | B52: Jasmine Brady
A53: 3 | B53: Jenna Perkins
A54: 4 | B54: Andy Thomson
A55: 5 | B55: Marcus Kuok
A56: 6 | B56: LaDainian Kuok
A57: 7 | B57: Earl King, Jr.
A58: 8 | B58: Tre Thompkins
A59: 9 | B59: Ronnie Carretero
A60: 10 | B60: John Orcutt
A61: 11 | B61: Morgan Thomas
A62: 12 | B62: Kenneth Hanover
A63: 13 | B63: Tammy Kummer
A64: 14 | B64: Brian Wibben
A65: 15 | B65: Tyler Hunt
A66: 16 | B66: Kaliq Cooper
A67: 17 | B67: Alan Hernandez
A68: 18 | B68: Susan Gabler
A69: 19 | B69: Bailey Nelson
A70: 20 | B70: Jenn McFarlane
A71: 21 | B71: James Nelson
A72: 22 | B72: Matt McFarlane

Sheet Sheet1
A1: 5 | B1: The Scramblers | C1: 85
A2: 8 | B2: Bowl Dogs | C2: 72
A3: 2 | B3: Mine's in the Gutter | C3: 75.5
A4: 16 | B4: Team 16 | C4: 25.5
A5: 3 | B5: Tammy Turkeys | C5: 69.5
A6: 4 | B6: Dragonbowlerz | C6: 69.5
A7: 13 | B7: Ghost In The Gutter | C7: 68
A8: 1 | B8: Over the Line | C8: 54
A9: 14 | B9: Up Split Creek | C9: 56.5
A10: 15 | B10: Cool Team Name | C10: 51
A11: 7 | B11: Sonoma Sauce | C11: 53.5
A12: 6 | B12: Pour Decisions | C12: 63
A13: 12 | B13: The Chuckers | C13: 57.5
A14: 11 | B14: Northbay Garage Door | C14: 49.5
A15: 10 | B15: Mickey's Pin Pals | C15: 44
A16: 9 | B16: DeathRow PinMates | C16: 44

Sheet Sheet2
A1: 1 | B1: Over the Line | C1: 54
A2: 2 | B2: Mine's in the Gutter | C2: 75.5
A3: 3 | B3: Tammy Turkeys | C3: 69.5
A4: 4 | B4: Dragonbowlerz | C4: 69.5
A5: 5 | B5: The Scramblers | C5: 85
A6: 6 | B6: Pour Decisions | C6: 63
A7: 7 | B7: Sonoma Sauce | C7: 53.5
A8: 8 | B8: Bowl Dogs | C8: 72
A9: 9 | B9: DeathRow PinMates | C9: 44
A10: 10 | B10: Mickey's Pin Pals | C10: 44
A11: 11 | B11: Northbay Garage Door | C11: 49.5
A12: 12 | B12: The Chuckers | C12: 57.5
A13: 13 | B13: Ghost In The Gutter | C13: 68
A14: 14 | B14: Up Split Creek | C14: 56.5
A15: 15 | B15: Cool Team Name | C15: 51
A16: 16 | B16: Team 16 | C16: 25.5
